lending/lending_fUSD_20240504
["ID","MTS","AMOUNT","RATE_DAILY","PERIOD"]
[325420542,1714860644711,-732.49699394,0.00030627,2]
[325420543,1714860644722,-1314.98789026,0.00030627,4]
[325420544,1714860644732,-6542.40678012,0.00030627,4]
[325420545,1714860644742,-19696.45282662,0.00030627,4]
[325420546,1714860644752,-150.2947559,0.00030627,30]
[325420547,1714860644763,-150.2947559,0.00030627,30]
[325420548,1714860644773,-150.2947559,0.00030627,30]
[325420549,1714860644783,-1000.0,0.00030627,2]
[325420550,1714860644794,-1624.95309,0.00030627,2]
[325420551,1714860644805,-7518.59275212,0.00030627,2]
[325420552,1714860644816,-500.0,0.00030684,2]
[325420553,1714860644826,-1163.17727808,0.00030703,4]
[325420554,1714860644837,-196.22470865,0.00030724,2]
[325420555,1714860644847,-2583.61,0.00030804,15]
[325420556,1714860644858,-150.0,0.000309,2]
[325420557,1714860644868,-196.22470865,0.00031063,2]
[325420558,1714860644878,-158.38911797,0.00031077,7]
[325420559,1714860644888,-558.0658659,0.00031355,2]
[325420560,1714860644898,-196.22470865,0.00031401,2]
[325420561,1714860644909,-18277.03842219,0.0003143,4]
[325420562,1714860644919,-151.0,0.00031448,2]
[325420563,1714860644929,-154.7943113,0.00031526,7]
[325420564,1714860644940,-151.27275645,0.00031527,2]
[325420565,1714860644950,-380.0,0.00031595,2]
[325420566,1714860644960,-380.0,0.00031598,2]
[325420567,1714860644971,-380.0,0.00031607,2]
[325420568,1714860644980,-360.78,0.00031609,2]
[325420569,1714860644990,-380.0,0.0003161,2]
[325420570,1714860645000,-380.0,0.00031619,2]
[325420571,1714860645011,-380.0,0.00031622,2]
[325420572,1714860645022,-380.0,0.00031622,2]
[325420573,1714860645032,-379.98,0.00031624,2]
[325420574,1714860645042,-196.22470865,0.00031739,2]
[325420575,1714860645052,-385.0,0.00031774,5]
[325420576,1714860645063,-256559.57814156,0.00031962,2]
[325420577,1714860645074,-152.0,0.00031996,2]
[325420578,1714860645083,-10425.98190839,0.00032,4]
[325420579,1714860645093,-154.69574402,0.00032031,7]
[325420580,1714860645103,-196.22470865,0.00032077,2]
[325420581,1714860645113,-154.7943113,0.00032185,7]
[325420582,1714860645123,-604.21,0.000322,2]
[325420583,1714860645133,-150.62951756,0.00032316,2]
[325420584,1714860645143,-158.38911797,0.00032322,7]
[325420585,1714860645152,-367.61,0.000324,2]
[325420586,1714860645162,-153.05818169,0.00032409,7]
[325420587,1714860645172,-196.22470865,0.00032415,2]
[325420588,1714860645185,-153.0,0.00032544,2]
[325420589,1714860645195,-153.85011202,0.00032547,7]
[325420590,1714860645205,-604.21,0.000327,2]
[325420591,1714860645215,-367.61,0.000327,2]
[325420592,1714860645226,-196.22470865,0.00032754,2]
[325420593,1714860645237,-151.85,0.00032877,2]
[325420594,1714860645247,-199.863504,0.00032877,7]
[325420595,1714860645257,-500.95,0.00032877,2]
[325420596,1714860645267,-158.38911797,0.00032996,7]
[325420597,1714860645277,-1688.114527,0.00033,2]
[325420598,1714860645287,-196.22470865,0.00033092,2]
[325420599,1714860645300,-154.0,0.00033092,2]
[325420600,1714860645310,-196.22470865,0.0003343,2]
[325420601,1714860645320,-155.0,0.0003364,2]
[325420602,1714860645329,-155.38116671,0.00033723,7]
[325420603,1714860645340,-196.22470865,0.00033768,2]
[325420604,1714860645351,-235.29,0.00033785,2]
[325420605,1714860645361,-154.69574402,0.00033842,7]
[325420606,1714860645370,-558.0658659,0.00033991,6]
[325420607,1714860645381,-1310.79,0.00034,2]
[325420608,1714860645392,-196.22470865,0.00034106,2]
[325420609,1714860645402,-157.85978082,0.00034124,7]
[325420610,1714860645412,-202.85905703,0.00034188,2]
[325420611,1714860645422,-158.38911797,0.00034255,7]
[325420612,1714860645432,-154.69574402,0.00034366,7]
[325420613,1714860645442,-158.38911797,0.00034414,7]
[325420614,1714860645452,-196.22470865,0.00034445,2]
[325420615,1714860645462,-2583.61,0.0003454,15]
[325420616,1714860645472,-158.38911797,0.00034658,7]
[325420617,1714860645482,-158.38911797,0.00034682,7]
[325420618,1714860645492,-196.22470865,0.00034783,2]
[325420619,1714860645502,-12041.77923095,0.000349,2]
[325420620,1714860645512,-604.21,0.000349,2]
[325420621,1714860645522,-367.61,0.000349,2]
[325420622,1714860645532,-1285.12188479,0.00035,4]
[325420623,1714860645542,-1310.79,0.000351,2]
[325420624,1714860645552,-1310.8,0.000351,2]
[325420625,1714860645562,-196.22470865,0.00035121,2]
[325420626,1714860645572,-256559.57814156,0.00035155,2]
[325420627,1714860645581,-157.85978082,0.00035436,7]
[325420628,1714860645591,-196.22470865,0.00035459,2]
[325420629,1714860645600,-151.85,0.00035616,2]
[325420630,1714860645610,-196.22470865,0.00035798,2]
[325420631,1714860645621,-1757.9,0.0003589,120]
[325420632,1714860645631,-169.26,0.0003589,120]
[325420633,1714860645641,-196.22470865,0.00036136,2]
[325420634,1714860645651,-158.38911797,0.00036255,7]
[325420635,1714860645661,-158.38911797,0.00036378,7]
[325420636,1714860645671,-693.0,0.00036392,2]
[325420637,1714860645680,-196.22470865,0.00036474,2]
[325420638,1714860645690,-558.0658659,0.00036627,9]
[325420639,1714860645700,-196.22470865,0.00036812,2]
[325420640,1714860645709,-467.37038368,0.000369,2]
[325420641,1714860645719,-154.9857782,0.00036916,7]
[325420642,1714860645729,-154.7943113,0.00036947,7]
[325420643,1714860645739,-2288.0,0.00037,60]
[325420644,1714860645748,-18457.99754558,0.00037,10]
[325420645,1714860645758,-995.38,0.00037,2]
[325420646,1714860645767,-5263.0,0.00037,15]
[325420647,1714860645776,-302.26,0.00037,2]
[325420648,1714860645786,-196.22470865,0.0003715,2]
[325420649,1714860645796,-151.0,0.00037314,2]
[325420650,1714860645806,-196.22470865,0.00037489,2]
[325420651,1714860645815,-150.0,0.00037714,4]
[325420652,1714860645825,-158.38911797,0.00037778,7]
[325420653,1714860645834,-604.21,0.000378,2]
[325420654,1714860645844,-367.61,0.000378,2]
[325420655,1714860645853,-196.22470865,0.00037827,2]
[325420656,1714860645863,-500.0,0.00037936,3]
[325420657,1714860645873,-302.0,0.00037942,4]
[325420658,1714860645883,-500.0,0.00037945,3]
[325420659,1714860645892,-500.0,0.00037954,3]
[325420660,1714860645902,-500.0,0.00037963,3]
[325420661,1714860645911,-482.94344347,0.0003797,2]
[325420662,1714860645921,-482.94344347,0.0003797,2]
[325420663,1714860645931,-482.94344347,0.0003797,2]
[325420664,1714860645940,-482.94344347,0.0003797,2]
[325420665,1714860645950,-482.94344347,0.0003797,2]
[325420666,1714860645960,-500.0,0.00037972,3]
[325420667,1714860645971,-500.0,0.0003798,3]
[325420668,1714860645981,-500.0,0.00037989,3]
[325420669,1714860645991,-500.0,0.00037998,3]
[325420670,1714860646001,-43318.13313611,0.00038,4]
[325420671,1714860646011,-158.38911797,0.00038031,7]
[325420672,1714860646020,-995.38,0.0003816,2]
[325420673,1714860646031,-196.22470865,0.00038165,2]
[325420674,1714860646040,-2583.61,0.00038276,15]
[325420675,1714860646049,-1310.8,0.000383,7]
[325420676,1714860646060,-482.94344347,0.00038348,2]
[325420677,1714860646075,-256559.57814156,0.00038349,2]
[325420678,1714860646091,-500.0,0.00038355,10]
[325420679,1714860646102,-500.0,0.00038355,10]
[325420680,1714860646112,-151.85,0.00038356,2]
[325420681,1714860646123,-1000.0,0.00038356,30]
[325420682,1714860646133,-155.02,0.00038356,2]
[325420683,1714860646145,-309.94,0.00038445,2]
[325420684,1714860646157,-152.33231404,0.00038479,7]
[325420685,1714860646168,-196.22470865,0.00038503,2]
[325420686,1714860646179,-158.38911797,0.00038558,7]
[325420687,1714860646189,-154.79431133,0.00038686,7]
[325420688,1714860646199,-196.22470865,0.00038841,2]
[325420689,1714860646210,-34853.82748235,0.000389,5]
[325420690,1714860646221,-1000.0,0.00038904,120]
[325420691,1714860646232,-153.05818169,0.00038986,7]
[325420692,1714860646243,-152.96433896,0.00039003,7]
[325420693,1714860646254,-156.56017012,0.00039003,7]
[325420694,1714860646264,-152.96433896,0.00039157,7]
[325420695,1714860646275,-154.69574402,0.00039173,7]
[325420696,1714860646287,-196.22470865,0.0003918,3]
[325420697,1714860646298,-166.99392,0.00039228,4]
[325420698,1714860646317,-558.0658659,0.00039264,12]
[325420699,1714860646327,-158.38911797,0.00039283,7]
[325420700,1714860646338,-995.38,0.0003932,2]
[325420701,1714860646348,-153.05818171,0.00039343,7]
[325420702,1714860646358,-500.0,0.00039451,10]
[325420703,1714860646367,-337.28885913,0.00039451,10]
[325420704,1714860646379,-150.2947559,0.00039489,30]
[325420705,1714860646390,-196.22470865,0.00039518,4]
[325420706,1714860646402,-396.573555,0.000396,14]
[325420707,1714860646414,-156.56017013,0.0003966,7]
[325420708,1714860646424,-152.33231404,0.00039672,7]
[325420709,1714860646436,-604.21,0.000397,7]
[325420710,1714860646446,-367.61,0.000397,7]
[325420711,1714860646458,-154.69574402,0.00039759,7]
[325420712,1714860646470,-1000.0,0.000398,2]
[325420713,1714860646480,-235.29,0.00039856,2]
[325420714,1714860646491,-196.22470865,0.00039856,6]
[325420715,1714860646501,-150.2947559,0.00039989,33]
[325420716,1714860646511,-482.94344347,0.00039999,2]
[325420717,1714860646522,-2857.58476678,0.0004,5]
[325420718,1714860646532,-552.31949414,0.0004,2]
[325420719,1714860646542,-1000000.0,0.0004,30]
[325420720,1714860646552,-390.77152648,0.0004001,30]
[325420721,1714860646562,-150.62951756,0.00040025,120]
[325420722,1714860646573,-1310.8,0.000401,7]
[325420723,1714860646583,-196.22470865,0.00040194,7]
[325420724,1714860646593,-157.050505,0.00040198,40]
[325420725,1714860646604,-2517.9,0.00040327,79]
[325420726,1714860646614,-995.38,0.0004048,2]
[325420727,1714860646624,-150.2947559,0.00040489,35]
[325420728,1714860646634,-157.050505,0.00040498,42]
[325420729,1714860646645,-150.0,0.00040517,2]
[325420730,1714860646655,-150.0,0.00040528,2]
[325420731,1714860646665,-196.22470865,0.00040533,8]
[325420732,1714860646677,-150.0,0.00040535,2]
[325420733,1714860646687,-158.38911797,0.00040603,30]
[325420734,1714860646698,-150.0,0.0004064,2]
[325420735,1714860646708,-150.0,0.00040661,2]
[325420736,1714860646718,-150.0,0.00040678,2]
[325420737,1714860646729,-153.52961303,0.0004077,2]
[325420738,1714860646740,-500.0,0.0004077,30]
[325420739,1714860646751,-157.050505,0.00040798,44]
[325420740,1714860646761,-150.0,0.00040846,2]
[325420741,1714860646771,-150.0,0.0004085,2]
[325420742,1714860646781,-196.22470865,0.00040871,10]
[325420743,1714860646792,-150.0,0.00040916,2]
[325420744,1714860646802,-150.0,0.00040953,2]
[325420745,1714860646812,-394.81,0.00040959,2]
[325420746,1714860646822,-752.01,0.00040959,2]
[325420747,1714860646833,-150.11843849,0.00040959,2]
[325420748,1714860646843,-207.3559119,0.00040979,2]
[325420749,1714860646854,-250.0,0.00040979,5]
[325420750,1714860646865,-350.0,0.00040979,10]
[325420751,1714860646876,-2482.94648625,0.00040979,2]
[325420752,1714860646886,-844.58918457,0.0004098,4]
[325420753,1714860646897,-159.4088707,0.0004098,30]
[325420754,1714860646906,-26151.32445545,0.0004098,2]
[325420755,1714860646916,-320.80436,0.0004098,7]
[325420756,1714860646926,-150.2947559,0.00040989,37]
[325420757,1714860646935,-390.14424073,0.00040995,2]
[325420758,1714860646945,-216.84557175,0.00040995,2]
[325420759,1714860647151,-9432.78085392,0.00040995,2]
[325420760,1714860647161,-363.90726646,0.00040995,2]
[325420761,1714860647171,-150.0,0.00040995,2]
[325420762,1714860647181,-710.59605264,0.00040997,30]
[325420763,1714860647191,-324.14591879,0.00040998,4]
[325420764,1714860647202,-258.47419654,0.00040998,4]
[325420765,1714860647212,-2562.88248965,0.00040998,2]
[325420766,1714860647222,-155.24867987,0.00040998,4]
[325420767,1714860647233,-156.04835279,0.00040998,4]
[325420768,1714860647242,-3168.71929079,0.00040999,4]
[325420769,1714860647252,-1000.0,0.00040999,120]
[325420770,1714860647262,-482.94344347,0.00040999,7]
[325420771,1714860647271,-437448.20069867,0.00041,35]
[325420772,1714860647282,-3355.98,0.00041,14]
[325420773,1714860647291,-155.04379397,0.00041,4]
[325420774,1714860647303,-233.50342638,0.00041,2]
[325420775,1714860647314,-155.0,0.00041,2]
[325420776,1714860647323,-36539.5620175,0.00041,2]
[325420777,1714860647333,-684.50819993,0.00041,2]
[325420778,1714860647343,-1832.72073135,0.00041,4]
[325420779,1714860647353,-281.35964663,0.00041,2]
[325420780,1714860647362,-500.0,0.00041,5]
[325420781,1714860647372,-1041.0025071,0.00041,4]
[325420782,1714860647384,-450.52764797,0.00041,4]
[325420783,1714860647394,-167.56442339,0.00041,30]
[325420784,1714860647404,-179.74414857,0.00041,2]
[325420785,1714860647414,-681.22053484,0.00041,15]
[325420786,1714860647424,-3398.15875725,0.00041,4]
[325420787,1714860647433,-160.0,0.00041,16]
[325420788,1714860647442,-155.13719281,0.00041,2]
[325420789,1714860647452,-291.077431,0.00041,4]
[325420790,1714860647461,-1000000.0,0.00041,35]
[325420791,1714860647473,-661.37892165,0.00041,2]
[325420792,1714860647483,-22365.36075969,0.00041,4]
[325420793,1714860647492,-150.0,0.00041,16]
[325420794,1714860647501,-500.0,0.00041,7]
[325420795,1714860647511,-500.0,0.00041,7]
[325420796,1714860647521,-500.0,0.00041,7]
[325420797,1714860647531,-500.0,0.00041,7]
[325420798,1714860647540,-500.0,0.00041,7]
[325420799,1714860647549,-500.0,0.00041,7]
[325420800,1714860647559,-500.0,0.00041,7]
[325420801,1714860647569,-500.0,0.00041,7]
[325420802,1714860647578,-500.0,0.00041,7]
[325420803,1714860647587,-500.0,0.00041,7]
[325420804,1714860647597,-500.0,0.00041,7]
[325420805,1714860647607,-500.0,0.00041,7]
[325420806,1714860647616,-500.0,0.00041,7]
[325420807,1714860647626,-500.0,0.00041,7]
[325420808,1714860647635,-500.0,0.00041,7]
[325420809,1714860647646,-500.0,0.00041044,30]
[325420810,1714860647657,-158.38911807,0.00041053,30]
[325420811,1714860647667,-150.0,0.00041084,2]
[325420812,1714860647677,-921.96430113,0.00041093,4]
[325420813,1714860647688,-482.94344347,0.00041093,7]
[325420814,1714860647697,-241.58831339,0.00041094,2]
[325420815,1714860647707,-345219.64151203,0.00041094,20]
[325420816,1714860647717,-482.94344347,0.00041094,7]
[325420817,1714860647727,-482.94344347,0.00041094,7]
[325420818,1714860647737,-500.0,0.00041095,30]
[325420819,1714860647747,-500.0,0.00041095,30]
[325420820,1714860647757,-500.0,0.00041095,30]
[325420821,1714860647767,-501.17248141,0.00041095,30]
[325420822,1714860647777,-510.13213858,0.00041095,30]
[325420823,1714860647787,-500.0,0.00041095,30]
[325420824,1714860647796,-500.0,0.00041095,30]
[325420825,1714860647807,-500.0,0.00041095,30]
[325420826,1714860647818,-500.0,0.00041095,30]
[325420827,1714860647829,-215.80844521,0.00041095,30]
[325420828,1714860647840,-500.0,0.00041095,30]
[325420829,1714860647849,-510.48171626,0.00041095,30]
[325420830,1714860647859,-500.0,0.00041095,30]
[325420831,1714860647869,-437.39429359,0.00041095,30]
[325420832,1714860647879,-500.0,0.00041095,30]
[325420833,1714860647890,-500.0,0.00041095,30]
[325420834,1714860647899,-500.0,0.00041095,30]
[325420835,1714860647910,-500.0,0.00041095,30]
[325420836,1714860647921,-500.0,0.00041095,30]
[325420837,1714860647931,-500.0,0.00041095,30]
[325420838,1714860647940,-495.56012153,0.00041095,30]
[325420839,1714860647950,-500.0,0.00041095,30]
[325420840,1714860647959,-614.35915017,0.00041095,30]
[325420841,1714860647969,-500.0,0.00041095,30]
[325420842,1714860647979,-500.0,0.00041095,30]
[325420843,1714860647989,-500.0,0.00041095,30]
[325420844,1714860647998,-500.0,0.00041095,30]
[325420845,1714860648008,-500.0,0.00041095,30]
[325420846,1714860648017,-500.0,0.00041095,30]
[325420847,1714860648026,-1146.87,0.00041095,30]
[325420848,1714860648035,-600.90608665,0.00041095,30]
[325420849,1714860648044,-1189.5,0.00041095,30]
[325420850,1714860648053,-500.0,0.00041095,30]
[325420851,1714860648063,-500.0,0.00041095,30]
[325420852,1714860648072,-642.69,0.00041095,30]
[325420853,1714860648082,-500.0,0.00041095,30]
[325420854,1714860648092,-500.0,0.00041095,30]
[325420855,1714860648103,-1016.22,0.00041095,30]
[325420856,1714860648112,-500.0,0.00041095,30]
[325420857,1714860648123,-500.0,0.00041095,30]
[325420858,1714860648134,-500.0,0.00041095,30]
[325420859,1714860648145,-1274.74,0.00041095,30]
[325420860,1714860648154,-500.0,0.00041095,30]
[325420861,1714860648167,-1437.63,0.00041095,30]
[325420862,1714860648176,-1141.74,0.00041095,30]
[325420863,1714860648185,-500.0,0.00041095,30]
[325420864,1714860648195,-500.0,0.00041095,30]
[325420865,1714860648204,-515.94225237,0.00041095,30]
[325420866,1714860648214,-1399.24,0.00041095,30]
[325420867,1714860648224,-1217.23,0.00041095,30]
[325420868,1714860648233,-500.0,0.00041095,30]
[325420869,1714860648243,-500.0,0.00041095,30]
[325420870,1714860648252,-539.12,0.00041095,30]
[325420871,1714860648261,-1006.4,0.00041095,30]
[325420872,1714860648271,-829.69,0.00041095,30]
[325420873,1714860648280,-307.0455722,0.00041095,30]
[325420874,1714860648290,-500.0,0.00041095,30]
[325420875,1714860648302,-500.0,0.00041095,30]
[325420876,1714860648314,-772.85,0.00041095,30]
[325420877,1714860648323,-500.0,0.00041095,30]
[325420878,1714860648332,-674.29,0.00041095,30]
[325420879,1714860648342,-500.0,0.00041095,30]
[325420880,1714860648352,-859.35,0.00041095,30]
[325420881,1714860648362,-306.23541127,0.00041095,30]
[325420882,1714860648371,-500.0,0.00041095,30]
[325420883,1714860648381,-500.0,0.00041095,30]
[325420884,1714860648391,-787.3,0.00041095,30]
[325420885,1714860648400,-500.0,0.00041095,30]
[325420886,1714860648410,-500.0,0.00041095,30]
[325420887,1714860648419,-500.0,0.00041095,30]
[325420888,1714860648428,-500.0,0.00041095,30]
[325420889,1714860648437,-500.0,0.00041095,30]
[325420890,1714860648446,-500.0,0.00041095,30]
[325420891,1714860648455,-617.23,0.00041095,30]
[325420892,1714860648466,-500.0,0.00041095,30]
[325420893,1714860648476,-268.78705181,0.00041095,30]
[325420894,1714860648485,-722.27,0.00041095,30]
[325420895,1714860648495,-500.0,0.00041095,30]
[325420896,1714860648504,-887.58,0.00041095,30]
[325420897,1714860648513,-707.46,0.00041095,30]
[325420898,1714860648523,-500.0,0.00041095,30]
[325420899,1714860648533,-500.0,0.00041095,30]
[325420900,1714860648542,-500.0,0.00041095,30]
[325420901,1714860648551,-500.0,0.00041095,31]
[325420902,1714860648561,-500.0,0.00041095,32]
[325420903,1714860648570,-500.0,0.00041095,33]
[325420904,1714860648579,-500.0,0.00041095,34]
[325420905,1714860648588,-500.0,0.00041095,30]
[325420906,1714860648598,-504.95512231,0.00041095,2]
[325420907,1714860648607,-500.0,0.00041095,30]
[325420908,1714860648616,-500.0,0.00041095,30]
[325420909,1714860648626,-555.04,0.00041095,30]
[325420910,1714860648635,-500.0,0.00041095,30]
[325420911,1714860648646,-1707.49,0.00041095,30]
[325420912,1714860648655,-677.79,0.00041095,30]
[325420913,1714860648664,-500.0,0.00041095,30]
[325420914,1714860648674,-1296.62,0.00041095,30]
[325420915,1714860648683,-303.96942848,0.00041095,30]
[325420916,1714860648692,-1680.85,0.00041095,30]
[325420917,1714860648701,-611.07,0.00041095,30]
[325420918,1714860648710,-670.46,0.00041095,30]
[325420919,1714860648720,-555.88,0.00041095,30]
[325420920,1714860648729,-500.0,0.00041095,30]
[325420921,1714860648738,-795.16,0.00041095,30]
[325420922,1714860648748,-1582.54,0.00041095,30]
[325420923,1714860648757,-500.0,0.00041095,30]
[325420924,1714860648766,-500.0,0.00041095,30]
[325420925,1714860648775,-500.0,0.00041095,30]
[325420926,1714860648784,-500.0,0.00041095,30]
[325420927,1714860648793,-1753.15,0.00041095,30]
[325420928,1714860648803,-500.0,0.00041095,30]
[325420929,1714860648812,-500.0,0.00041095,30]
[325420930,1714860648821,-500.0,0.00041095,30]
[325420931,1714860648831,-501.9,0.00041095,30]
[325420932,1714860648840,-500.0,0.00041095,30]
[325420933,1714860648849,-1319.96,0.00041095,30]
[325420934,1714860648859,-500.0,0.00041095,30]
[325420935,1714860648868,-500.0,0.00041095,30]
[325420936,1714860648877,-975.16,0.00041095,30]
[325420937,1714860648886,-500.0,0.00041095,30]
[325420938,1714860648895,-500.0,0.00041095,30]
[325420939,1714860648905,-500.0,0.00041095,30]
[325420940,1714860648914,-1689.38,0.00041095,30]
[325420941,1714860648923,-282.81835858,0.00041095,30]
[325420942,1714860648932,-500.0,0.00041095,30]
[325420943,1714860648941,-500.0,0.00041095,30]
[325420944,1714860648950,-500.0,0.00041095,30]
[325420945,1714860648959,-500.0,0.00041095,30]
[325420946,1714860648970,-939.84,0.00041095,30]
[325420947,1714860648978,-500.0,0.00041095,30]
[325420948,1714860648988,-1367.71,0.00041095,30]
[325420949,1714860648997,-716.63,0.00041095,30]
[325420950,1714860649006,-967.17,0.00041095,30]
[325420951,1714860649015,-500.0,0.00041095,30]
[325420952,1714860649025,-500.0,0.00041095,30]
[325420953,1714860649034,-1554.09,0.00041095,30]
[325420954,1714860649043,-500.0,0.00041095,30]
[325420955,1714860649053,-1059.94,0.00041095,30]
[325420956,1714860649062,-844.42,0.00041095,30]
[325420957,1714860649072,-500.0,0.00041095,30]
[325420958,1714860649081,-500.0,0.00041095,30]
[325420959,1714860649090,-1074.12,0.00041095,30]
[325420960,1714860649100,-500.0,0.00041095,30]
[325420961,1714860649109,-500.0,0.00041095,30]
[325420962,1714860649117,-500.0,0.00041095,30]
[325420963,1714860649127,-500.0,0.00041095,31]
[325420964,1714860649136,-278.32,0.00041095,32]
[325420965,1714860649145,-508.16212053,0.00041095,30]
[325420966,1714860649155,-500.0,0.00041095,30]
[325420967,1714860649164,-500.0,0.00041095,31]
[325420968,1714860649173,-500.0,0.00041095,30]
[325420969,1714860649183,-500.0,0.00041095,32]
[325420970,1714860649192,-500.0,0.00041095,33]
[325420971,1714860649201,-757.36,0.00041095,30]
[325420972,1714860649210,-500.0,0.00041095,34]
[325420973,1714860649219,-500.0,0.00041095,35]
[325420974,1714860649229,-500.0,0.00041095,36]
[325420975,1714860649238,-500.0,0.00041095,37]
[325420976,1714860649247,-500.0,0.00041095,38]
[325420977,1714860649257,-500.0,0.00041095,39]
[325420978,1714860649267,-500.0,0.00041095,40]
[325420979,1714860649276,-500.0,0.00041095,41]
[325420980,1714860649285,-192.93,0.00041095,42]
[325420981,1714860649294,-525.11,0.00041095,30]
[325420982,1714860649305,-1113.68,0.00041095,30]
[325420983,1714860649315,-618.55,0.00041095,30]
[325420984,1714860649324,-500.0,0.00041095,30]
[325420985,1714860649334,-500.0,0.00041095,30]
[325420986,1714860649344,-500.43710849,0.00041095,30]
[325420987,1714860649354,-785.09,0.00041095,30]
[325420988,1714860649363,-732.81,0.00041095,30]
[325420989,1714860649372,-578.12,0.00041095,30]
[325420990,1714860649383,-500.0,0.00041095,30]
[325420991,1714860649392,-242.98564925,0.00041095,30]
[325420992,1714860649402,-500.0,0.00041095,30]
[325420993,1714860649411,-500.0,0.00041095,30]
[325420994,1714860649420,-623.88,0.00041095,30]
[325420995,1714860649429,-313.2357272,0.00041095,30]
[325420996,1714860649439,-500.0,0.00041095,30]
[325420997,1714860649448,-500.0,0.00041095,30]
[325420998,1714860649457,-500.0,0.00041095,30]
[325420999,1714860649466,-500.0,0.00041095,30]
[325421000,1714860649476,-500.0,0.00041095,30]
[325421001,1714860649485,-500.0,0.00041095,30]
[325421002,1714860649495,-1455.79,0.00041095,30]
[325421003,1714860649504,-500.56473606,0.00041095,30]
[325421004,1714860649514,-500.0,0.00041095,30]
[325421005,1714860649523,-500.0,0.00041095,30]
[325421006,1714860649532,-500.0,0.00041095,30]
[325421007,1714860649542,-500.0,0.00041095,30]
[325421008,1714860649552,-501.03085112,0.00041095,30]
[325421009,1714860649562,-762.76,0.00041095,30]
[325421010,1714860649571,-500.72695241,0.00041095,30]
[325421011,1714860649581,-500.0,0.00041095,30]
[325421012,1714860649591,-500.0,0.00041095,30]
[325421013,1714860649601,-500.0,0.00041095,30]
[325421014,1714860649611,-500.0,0.00041095,30]
[325421015,1714860649621,-765.26,0.00041095,30]
[325421016,1714860649630,-500.0,0.00041095,30]
[325421017,1714860649640,-500.0,0.00041095,30]
[325421018,1714860649650,-582.03,0.00041095,30]
[325421019,1714860649659,-500.0,0.00041095,30]
[325421020,1714860649668,-500.0,0.00041095,30]
[325421021,1714860649678,-501.16746075,0.00041095,30]
[325421022,1714860649687,-596.49,0.00041095,30]
[325421023,1714860649696,-697.98,0.00041095,30]
[325421024,1714860649705,-500.0,0.00041095,30]
[325421025,1714860649714,-500.0,0.00041095,30]
[325421026,1714860649724,-835.07,0.00041095,30]
[325421027,1714860649734,-1160.33,0.00041095,30]
[325421028,1714860649743,-1003.15,0.00041095,30]
[325421029,1714860649752,-500.0,0.00041095,30]
[325421030,1714860649761,-500.0,0.00041095,2]
[325421031,1714860649771,-500.0,0.00041095,2]
[325421032,1714860649780,-989.03,0.00041095,30]
[325421033,1714860649791,-500.0,0.00041095,30]
[325421034,1714860649800,-991.17,0.00041095,30]
[325421035,1714860649809,-548.87,0.00041095,30]
[325421036,1714860649819,-162.26973117,0.00041095,30]
[325421037,1714860649828,-1071.46,0.00041095,30]
[325421038,1714860649838,-500.0,0.00041095,30]
[325421039,1714860649847,-500.0,0.00041095,30]
[325421040,1714860649857,-804.45,0.00041095,30]
[325421041,1714860649867,-849.83,0.00041095,30]